Cogmind - Beta 9.2 @@@ ROGUE MODE // 2019.11.27 @ 11:55:59 Player: UlyssesB Result: Escaped! Performance ------------- Evolutions (9) 4500 Regions Visited (26) 5200 Robots Destroyed (33) 165 Value Destroyed (1104) 1104 Prototype IDs (79) 1580 Alien Tech Used (2) 400 Bonus (5244) 5244 TOTAL SCORE: 18193 Bonus ------- Follower Combat Kills 1075 Aligned with FarCom 300 Met Zhirov 300 Met Warlord at Base 500 MAIN.C Attacked Warlord 500 Win 3000 Friendly Fire -431 Cogmind --------- Core Integrity 1568/1600 Matter 300/300 Energy 956/1200 System Corruption 0% Temperature Cool (12) Movement Flying (20) Location To Epsilon Eridani Parts ------- > --- POWER (2) -------- Vortex Chain Reactor > --- PROPULSION (8) --- Cooled Cesium-ion Thruster Cooled Cesium-ion Thruster Cooled Cesium-ion Thruster Cooled Cesium-ion Thruster Field Propulsion Array Cooled Impulse Thruster Cooled Impulse Thruster > --- UTILITY (13) ----- Energy Well Spectral Analyzer Advanced Reaction Control System Experimental Cloaking Device Force Field Hacking Suite Hacking Suite Improved Hacking Suite Advanced Hacking Suite Advanced Hacking Suite Advanced Hacking Suite System Shield Improved System Shield > --- WEAPON (2) ------- Plasma Sword > --- INVENTORY (4) ---- Light Quantum Reactor Cooled Impulse Thruster Advanced Force Field Transdimensional Reconstructor Peak State ------------ > --- POWER ------------ Vortex Chain Reactor > --- PROPULSION ------- Cooled Cesium-ion Thruster Cooled Cesium-ion Thruster Cooled Cesium-ion Thruster Cooled Cesium-ion Thruster Field Propulsion Array Cooled Impulse Thruster Cooled Impulse Thruster > --- UTILITY ---------- Energy Well Spectral Analyzer Advanced Reaction Control System Experimental Cloaking Device Force Field Hacking Suite Hacking Suite Improved Hacking Suite Advanced Hacking Suite Advanced Hacking Suite Advanced Hacking Suite System Shield Improved System Shield > --- WEAPON ----------- Tesla Rifle Plasma Sword > --- INVENTORY -------- Light Quantum Reactor Cooled Impulse Thruster Advanced Force Field Transdimensional Reconstructor [Rating: 168] Favorites ----------- Power Fusion Reactor Engine Ion Engine Power Core Light Neutrino Core Reactor Fusion Reactor Propulsion Cooled Cesium-ion Thruster Treads Improved Medium Treads Leg Flexi-carbon Leg Hover Unit Gravmag System Flight Unit Cooled Cesium-ion Thruster Utility Hacking Suite Device Advanced Power Amplifier Storage Energy Well Processor Enhanced Optical Array Hackware Hacking Suite Weapon Plasma Sword Energy Gun Medium Laser Ballistic Gun Assault Rifle Special Weapon Remote Datajack Impact Weapon Powered Hammer Slashing Weapon Plasma Sword Piercing Weapon Lance Build | -11 -10 -9 -9 -9 -8 -8 -7 -6 -5 -5 -5 -5 -5 -5 -4 -4 -4 -4 -4 -4 -4 -3 -3 -2 -1 -1 ------- Run | Scr Mat Mat Min Exi Min Mat Fac Fac Fac Was Fac Upp Upp Zhi Pro Fac Was Fac Upp Upp War Pro Res Res Acc Com Slots Evolved 18 | . . 2 . . . 2 2 2 2 . . . . . . 2 . . . . . . 2 2 2 . Power 1 | . . . . . . . . . . . . . . . . 1 . . . . . . . . . . Propulsion 6 | . . . . . . . 2 . . . . . . . . 1 . . . . . . 1 . 2 . Utility 11 | . . 2 . . . 2 . 2 2 . . . . . . . . . . . . . 1 2 . . Weapon . | . . . . . . . . . . . . . . . . . . . . . . . . . . . Parts Attached 127 | . 4 5 . 2 . 1 5 13 5 4 17 . 1 3 1 12 . 16 1 2 8 . 15 4 7 1 Power 16 | . 2 1 . 1 . . . 1 . 1 2 . . 1 . 2 . 4 . . 1 . . . . . Engine 6 | . 2 1 . 1 . . . 1 . 1 . . . . . . . . . . . . . . . . Core 3 | . . . . . . . . . . . 2 . . . . 1 . . . . . . . . . . Reactor 7 | . . . . . . . . . . . . . . 1 . 1 . 4 . . 1 . . . . . Propulsion 52 | . . 3 . 1 . 1 2 9 1 2 6 . . 1 1 8 . 6 . . 3 . 5 1 2 . Treads 4 | . . . . . . . . 3 . 1 . . . . . . . . . . . . . . . . Leg 2 | . . 1 . . . . . 1 . . . . . . . . . . . . . . . . . . Wheel . | . . . . . . . . . . . . . . . . . . . . . . . . . . . Hover 7 | . . . . . . . 1 5 . . . . . . . . . 1 . . . . . . . . Flight 39 | . . 2 . 1 . 1 1 . 1 1 6 . . 1 1 8 . 5 . . 3 . 5 1 2 . Utility 47 | . . 1 . . . . 1 2 3 . 6 . 1 1 . 1 . 6 1 2 4 . 10 3 5 . Device 23 | . . . . . . . 1 1 . . . . . 1 . 1 . 4 1 2 3 . 5 1 3 . Storage 3 | . . . . . . . . . . . . . . . . . . . . . . . . 2 1 . Processor 6 | . . 1 . . . . . 1 1 . 1 . 1 . . . . . . . . . 1 . . . Hackware 15 | . . . . . . . . . 2 . 5 . . . . . . 2 . . 1 . 4 . 1 . Protection . | . . . . . . . . . . . . . . . . . . . . . . . . . . . Artifact . | . . . . . . . . . . . . . . . . . . . . . . . . . . . Weapon 12 | . 2 . . . . . 2 1 1 1 3 . . . . 1 . . . . . . . . . 1 Energy Gun 2 | . 1 . . . . . . . . . . . . . . . . . . . . . . . . 1 Energy Cannon . | . . . . . . . . . . . . . . . . . . . . . . . . . . . Ballistic Gun 1 | . 1 . . . . . . . . . . . . . . . . . . . . . . . . . Ballistic Cannon . | . . . . . . . . . . . . . . . . . . . . . . . . . . . Launcher . | . . . . . . . . . . . . . . . . . . . . . . . . . . . Special Weapon 2 | . . . . . . . . 1 . . 1 . . . . . . . . . . . . . . . Impact Weapon 3 | . . . . . . . . . 1 1 1 . . . . . . . . . . . . . . . Slashing Weapon 3 | . . . . . . . 2 . . . . . . . . 1 . . . . . . . . . . Piercing Weapon 1 | . . . . . . . . . . . 1 . . . . . . . . . . . . . . . Special Melee Weapon . | . . . . . . . . . . . . . . . . . . . . . . . . . . . Unidentified Prototypes 15 | . . . . . . 1 . 2 1 . 1 . . 3 . . . . 1 . 5 . . . 1 . Parts Lost 36 | . 3 1 . . . 1 . 12 1 . 2 1 . . 1 5 . 2 . . . 1 6 . . . Power 2 | . . . . . . . . 1 . . 1 . . . . . . . . . . . . . . . Propulsion 16 | . 1 . . . . . . 8 1 . 1 . . . 1 3 . 1 . . . . . . . . Utility 12 | . . . . . . . . 2 . . . 1 . . . 1 . 1 . . . 1 6 . . . Weapon 6 | . 2 1 . . . 1 . 1 . . . . . . . 1 . . . . . . . . . . Highest Loss Streak 6 | . 2 1 . . . 1 . 6 1 . 1 1 . . 1 3 . 1 . . . 1 5 . . . Average Slot Usage (%) 66 | . 81 43 44 43 44 36 46 30 38 45 75 86 86 91 94 86 84 88 84 84 83 83 77 82 84 88 Engine 2 | . 13 5 11 10 11 9 7 1 . 1 2 . . . . . . . . . . . . . . . Reactor 2 | . . . . . . . . . . . . . . 2 5 5 5 7 10 10 8 5 4 4 4 4 Treads 2 | . . . . . . . . 9 16 4 . . . . . . . . . . . . . . . . Leg 1 | . 26 3 . . . . . 1 5 2 . . . . . . . . . . . . . . . . Flight 15 | . . 13 22 22 22 18 15 1 . 6 20 17 17 17 17 20 21 20 15 15 17 21 22 26 28 28 Device 6 | . . . . . . . 6 3 . . . . . 2 5 9 10 10 15 15 17 20 12 11 11 12 Processor 7 | . . 10 11 11 11 9 7 3 5 11 11 11 15 17 17 10 10 7 5 5 3 . 3 4 4 4 Hackware 18 | . . . . . . . . . 2 11 29 39 35 35 35 29 26 32 31 31 31 31 27 30 29 32 Impact Weapon 1 | . . . . . . . . . 3 4 4 5 5 5 5 2 . . . . . . . . . . Slashing Weapon 2 | . . . . . . . 6 1 . . . . . . . 1 5 5 5 5 5 5 4 4 4 4 Naked Turns 114 | . . . . . . . . 114 . . . . . . . . . . . . . . . . . . Heaviest Build 58 | 10 13 7 5 5 5 5 9 15 3 13 15 14 14 21 21 32 29 38 38 38 49 49 56 56 53 58 Greatest Support 66 | 20 20 8 8 8 8 9 9 33 3 16 36 36 36 36 40 46 37 51 45 41 54 53 61 57 66 66 Greatest Overweight (x) 1 | . . . . . . . . . . . . . . . . 1 . . . . . . . . . . Average Overweight (x) . | . . . . . . . . . . . . . . . . . . . . . . . . . . . Largest Inventory Capacity 6 | . 6 4 4 4 4 4 4 4 4 4 4 4 4 4 4 4 4 4 4 4 4 4 4 4 4 4 Average Capacity 4 | . 5 4 4 4 4 4 4 4 4 4 4 4 4 4 4 4 4 4 4 4 4 4 4 4 4 4 Most Carried 6 | . 6 4 3 4 3 4 4 4 4 4 4 4 4 4 4 4 2 4 4 4 4 3 4 4 4 4 Average Carried 3 | . 5 3 3 3 3 3 3 2 3 3 3 4 4 3 3 3 2 3 4 4 3 3 3 3 3 4 Final Capacity 6 | 6 4 4 4 4 4 4 4 4 4 4 4 4 4 4 4 4 4 4 4 4 4 4 4 4 4 4 Final Carried 6 | 6 4 3 3 3 3 4 4 2 4 4 4 4 4 4 4 2 2 4 4 4 3 3 3 4 4 4 Class Distribution -------------------- 44% | Wizard-Sprinter 27% | Mutant 9% | Scout 6% | Hacker-Sprinter 6% | Hacker-Mutant 4% | Wizard-Mutant Dominant Class ---------------- Mutant | -10/Materials Mutant | -9/Materials Mutant | -9/Mines Mutant | -9/Exiles Mutant | -8/Mines Mutant | -8/Materials Scout | -7/Factory Mutant | -6/Factory Mutant | -5/Factory Hacker-Mutant | -5/Waste Wizard-Sprinter | -5/Factory Wizard-Sprinter | -5/Upper Caves Wizard-Sprinter | -5/Upper Caves Wizard-Sprinter | -5/Zhirov Wizard-Sprinter | -4/Proximity Caves Wizard-Mutant | -4/Factory Hacker-Sprinter | -4/Waste Wizard-Sprinter | -4/Factory Wizard-Sprinter | -4/Upper Caves Wizard-Sprinter | -4/Upper Caves Wizard-Sprinter | -4/Warlord Wizard-Sprinter | -3/Proximity Caves Wizard-Sprinter | -3/Research Wizard-Sprinter | -2/Research Wizard-Sprinter | -1/Access Wizard-Sprinter | -1/Command Resources | -11 -10 -9 -9 -9 -8 -8 -7 -6 -5 -5 -5 -5 -5 -5 -4 -4 -4 -4 -4 -4 -4 -3 -3 -2 -1 -1 ----------- Run | Scr Mat Mat Min Exi Min Mat Fac Fac Fac Was Fac Upp Upp Zhi Pro Fac Was Fac Upp Upp War Pro Res Res Acc Com Matter Collected 1729 | 200 87 38 . 81 . . 60 101 66 52 255 . 14 . 30 69 . 198 60 88 . 72 68 35 125 30 Remotely . | . . . . . . . . . . . . . . . . . . . . . . . . . . . Salvage Created 1624 | . 469 38 . . . . 131 52 111 . 169 . . . . 16 . 255 . . . . 140 35 208 . Parts 62 | . 18 6 . . . . 7 3 2 . 2 . . . . 1 . 5 . . . . 8 4 6 . Haulers Intercepted 8 | . 1 . . . . . 2 . 1 . 2 . . . . . . . . . . . 1 . 1 . Recyclers Shooed 2 | . 2 . . . . . . . . . . . . . . . . . . . . . . . . . Parts Field Recycled . | . . . . . . . . . . . . . . . . . . . . . . . . . . . Retrieved Matter . | . . . . . . . . . . . . . . . . . . . . . . . . . . . Parts Self-Destructed . | . . . . . . . . . . . . . . . . . . . . . . . . . . . Prevented 5 | . . . . . . . . . . . . . . . . . . . . . 4 1 . . . . Kills | -11 -10 -9 -9 -9 -8 -8 -7 -6 -5 -5 -5 -5 -5 -5 -4 -4 -4 -4 -4 -4 -4 -3 -3 -2 -1 -1 ------- Run | Scr Mat Mat Min Exi Min Mat Fac Fac Fac Was Fac Upp Upp Zhi Pro Fac Was Fac Upp Upp War Pro Res Res Acc Com Combat Hostiles Destroyed 10 | . 6 3 . . . . . . . . . . . . . . . . . . . . . . 1 . Melee 1 | . . . . . . . . . . . . . . . . . . . . . . . . . 1 . Guns 9 | . 6 3 . . . . . . . . . . . . . . . . . . . . . . . . Classes Destroyed 9 | . 5 1 . . . . 1 . . . 1 . . . . . . . . . . . . . 1 . Worker 3 | . . . . . . . 1 1 . . . . . . . 1 . . . . . . . . . . Builder 2 | . . . . . . . . . . . 1 . . . . . . . . . . . 1 . . . Hauler 8 | . 1 . . . . . 2 . 1 . 2 . . . . . . . . . . . 1 . 1 . Recycler 3 | . 1 . . . . . . . . . . . . . . . . 2 . . . . . . . . Operator 4 | . 1 . . . . . . 1 1 . . . . . . . . 1 . . . . . . . . Watcher 3 | . 1 . . . . . . . . . . . . . . . . . . . . . . 1 1 . Swarmer 3 | . . 3 . . . . . . . . . . . . . . . . . . . . . . . . Grunt 6 | . 6 . . . . . . . . . . . . . . . . . . . . . . . . . Hunter 1 | . . . . . . . . . . . . . . . . . . . . . . . . . 1 . Best Kill Streak 3 | . 3 3 . . . . 1 1 1 . 1 . . . . 1 . 2 . . . . 1 1 1 . Combat Bots Only 3 | . 3 3 . . . . . . . . . . . . . . . . . . . . . . 1 . Max Kills in Single Turn 1 | . 1 1 . . . . 1 1 1 . 1 . . . . 1 . 1 . . . . 1 1 1 . Gunslinging . | . . . . . . . . . . . . . . . . . . . . . . . . . . . Exploded . | . . . . . . . . . . . . . . . . . . . . . . . . . . . Melee 1 | . . . . . . . . . . . . . . . . . . . . . . . . . 1 . Uniques/NPCs Destroyed . | . . . . . . . . . . . . . . . . . . . . . . . . . . . Combat | -11 -10 -9 -9 -9 -8 -8 -7 -6 -5 -5 -5 -5 -5 -5 -4 -4 -4 -4 -4 -4 -4 -3 -3 -2 -1 -1 -------- Run | Scr Mat Mat Min Exi Min Mat Fac Fac Fac Was Fac Upp Upp Zhi Pro Fac Was Fac Upp Upp War Pro Res Res Acc Com Damage Taken 4247 | . 466 142 . . . 48 . 908 799 . 64 72 87 . 188 405 . 240 . 90 23 216 402 . . 97 Core 1325 | . 74 41 . . . 33 . 481 266 . . . 43 . 81 67 . 57 . 27 . 24 99 . . 32 Absorbed by Shields 305 | . . . . . . . . . . . . . . . . . . . . . . . 205 . . 100 Core Remaining (%) 84 | 100 70 . . . 89 94 100 43 . . . . . . 61 . . . . . . 84 92 100 . 98 Volleys Fired 58 | . 39 15 . . . . . 2 . . 1 . . . . . . . . . . . . . . 1 Largest 2 | . 2 1 . . . . . 1 . . 1 . . . . . . . . . . . . . . 1 Hottest 90 | . 90 20 . . . . . 30 . . 40 . . . . . . . . . . . . . . 65 Shots Fired 96 | . 77 15 . . . . . 2 . . 1 . . . . . . . . . . . . . . 1 Gun 93 | . 77 15 . . . . . . . . . . . . . . . . . . . . . . . 1 Cannon . | . . . . . . . . . . . . . . . . . . . . . . . . . . . Launcher . | . . . . . . . . . . . . . . . . . . . . . . . . . . . Special 3 | . . . . . . . . 2 . . 1 . . . . . . . . . . . . . . . Kinetic 37 | . 22 15 . . . . . . . . . . . . . . . . . . . . . . . . Thermal 52 | . 52 . . . . . . . . . . . . . . . . . . . . . . . . . Explosive . | . . . . . . . . . . . . . . . . . . . . . . . . . . . Electromagnetic 4 | . 3 . . . . . . . . . . . . . . . . . . . . . . . . 1 Robot Hit Streak 8 | . 6 6 . . . . . 8 . . . . . . . . . . . . . . . . . . Robot Miss Streak 4 | . 4 2 . . . . . . . . . . . . . . . . . . . . . . . . Penetration Max . | . . . . . . . . . . . . . . . . . . . . . . . . . . . Secondary Targets 1 | . 1 . . . . . . . . . . . . . . . . . . . . . . . . . Max Gunslinging Chain 1 | . 1 . . . . . . . . . . . . . . . . . . . . . . . . . Shots Hit Robots 111 | . 54 10 . . . . 9 6 2 . 13 . . . . 2 . 4 . . . . 4 1 6 . Core Hits 45 | . 20 3 . . . . 3 3 1 . 2 . . . . 1 . 3 . . . . 2 1 3 3 Critical Hits 2 | . . . . . . . . . . . 1 . . . . . . . . . . . . . 1 . Critical Kills 2 | . . . . . . . . . . . 1 . . . . . . . . . . . . . 1 . Critical Parts Destroyed . | . . . . . . . . . . . . . . . . . . . . . . . . . . . Melee Attacks 218 | . . . . . . . 14 10 25 . 31 . . . . 20 . 29 3 . 3 3 27 7 20 26 Impact 54 | . . . . . . . . . 25 . 24 . . . . 5 . . . . . . . . . . Slashing 149 | . . . . . . . 14 10 . . . . . . . 7 . 29 3 . 3 3 27 7 20 26 Piercing 15 | . . . . . . . . . . . 7 . . . . 8 . . . . . . . . . . Sneak Attacks 16 | . . . . . . . 3 1 2 . 2 . . . . 1 . 2 . . . . 2 . 3 . Combat Hostiles . | . . . . . . . . . . . . . . . . . . . . . . . . . . . Follow-up Attacks 1 | . . . . . . . . . . . . . . . . 1 . . . . . . . . . . Damage Inflicted 4411 | . 694 123 . . . . 542 281 211 . 509 . . . . 161 . 402 . . . . 389 67 601 431 Guns 817 | . 694 123 . . . . . . . . . . . . . . . . . . . . . . . . Cannons . | . . . . . . . . . . . . . . . . . . . . . . . . . . . Explosions 431 | . . . . . . . . . . . . . . . . . . . . . . . . . . 431 Melee 3146 | . . . . . . . 542 277 198 . 509 . . . . 161 . 402 . . . . 389 67 601 . Ramming 17 | . . . . . . . . 4 13 . . . . . . . . . . . . . . . . . Kinetic 304 | . 181 123 . . . . . . . . . . . . . . . . . . . . . . . . Thermal 471 | . 471 . . . . . . . . . . . . . . . . . . . . . . . . . Explosive 431 | . . . . . . . . . . . . . . . . . . . . . . . . . . 431 Electromagnetic 42 | . 42 . . . . . . . . . . . . . . . . . . . . . . . . . Impact 595 | . . . . . . . . . 198 . 397 . . . . . . . . . . . . . . . Slashing 2278 | . . . . . . . 542 277 . . . . . . . . . 402 . . . . 389 67 601 . Piercing 273 | . . . . . . . . . . . 112 . . . . 161 . . . . . . . . . . Highest Corruption 10 | . . . . . . . . . 5 5 5 5 5 5 5 . 10 10 6 5 6 1 . . . . Average Corruption 6 | . . . . . . . . . 4 5 5 5 5 5 5 . 10 8 5 5 2 1 . . . . Corruption Purged 6 | . . . . . . . . . . . . . . . . . . 4 1 . . 1 . . . . Effects 97 | . . . . . . . . . 1 10 22 3 4 2 2 . . 46 3 4 . . . . . . Message Errors 13 | . . . . . . . . . . 1 3 2 . 1 . . . 5 . 1 . . . . . . Matter Fused 29 | . . . . . . . . . 1 3 9 1 . 1 2 . . 9 2 1 . . . . . . Heat Flow Errors 10 | . . . . . . . . . . 3 1 . 2 . . . . 3 . 1 . . . . . . Energy Discharges 7 | . . . . . . . . . . . 3 . . . . . . 3 1 . . . . . . . Parts Rejected 2 | . . . . . . . . . . 1 1 . . . . . . . . . . . . . . . Data Loss (minor) 11 | . . . . . . . . . . 1 3 . 2 . . . . 4 . 1 . . . . . . Data Loss (major) 4 | . . . . . . . . . . 1 . . . . . . . 3 . . . . . . . . Alerts 1 | . . . . . . . . . . . . . . . . . . 1 . . . . . . . . Misdirections 15 | . . . . . . . . . . . . . . . . . . 15 . . . . . . . . Targeting Errors 5 | . . . . . . . . . . . 2 . . . . . . 3 . . . . . . . . Overload Shots . | . . . . . . . . . . . . . . . . . . . . . . . . . . . Overflow Damage 537 | . . . . . . . 34 32 164 . 25 . . . . 71 . 42 . . . . 10 . 105 54 Projectiles . | . . . . . . . . . . . . . . . . . . . . . . . . . . . Explosions 54 | . . . . . . . . . . . . . . . . . . . . . . . . . . 54 Melee 483 | . . . . . . . 34 32 164 . 25 . . . . 71 . 42 . . . . 10 . 105 . Knockbacks 1 | . . . . . . . . 1 . . . . . . . . . . . . . . . . . . Impact 1 | . . . . . . . . 1 . . . . . . . . . . . . . . . . . . Kinetic . | . . . . . . . . . . . . . . . . . . . . . . . . . . . Secondary . | . . . . . . . . . . . . . . . . . . . . . . . . . . . Self-Inflicted Damage 7 | . . . . . . . . 2 5 . . . . . . . . . . . . . . . . . Shots . | . . . . . . . . . . . . . . . . . . . . . . . . . . . Rammed 6 | . . . . . . . . 1 3 . . . . . . . . 2 . . . . . . . . Targets Rammed 6 | . . . . . . . . 1 3 . . . . . . . . 2 . . . . . . . . Kicked . | . . . . . . . . . . . . . . . . . . . . . . . . . . . Crushed . | . . . . . . . . . . . . . . . . . . . . . . . . . . . Highest Temperature 310 | . 310 . . . . . . . . 225 190 . 183 . 11 243 35 280 . 210 . . 3 2 . . Average Temperature 83 | . 137 . . . . . . . . 121 97 . 82 . 6 47 20 90 . 107 . . 3 2 . . Received Heat Transfer 769 | . 255 9 . . . 27 . 237 66 . 18 9 9 . 24 66 . 27 . . . 9 9 . . 4 Effects 3 | . 2 . . . . . . . . . . . . . . 1 . . . . . . . . . . Energy Bleed 2 | . 2 . . . . . . . . . . . . . . . . . . . . . . . . . Interference 1 | . . . . . . . . . . . . . . . . 1 . . . . . . . . . . Siege Activations . | . . . . . . . . . . . . . . . . . . . . . . . . . . . Robots Corrupted . | . . . . . . . . . . . . . . . . . . . . . . . . . . . Combat Hostiles . | . . . . . . . . . . . . . . . . . . . . . . . . . . . Parts Fried 1 | . . . . . . . . . 1 . . . . . . . . . . . . . . . . . Impact Corruptions 8 | . . . . . . . . . 6 . 2 . . . . . . . . . . . . . . . Robots Melted . | . . . . . . . . . . . . . . . . . . . . . . . . . . . Combat Hostiles . | . . . . . . . . . . . . . . . . . . . . . . . . . . . Parts Melted 3 | . 3 . . . . . . . . . . . . . . . . . . . . . . . . . Heat Transferred 1311 | . 1311 . . . . . . . . . . . . . . . . . . . . . . . . . Parts Sabotaged . | . . . . . . . . . . . . . . . . . . . . . . . . . . . Parts Stolen . | . . . . . . . . . . . . . . . . . . . . . . . . . . . Parts Stripped . | . . . . . . . . . . . . . . . . . . . . . . . . . . . Power Chain Reactions . | . . . . . . . . . . . . . . . . . . . . . . . . . . . Missiles Intercepted . | . . . . . . . . . . . . . . . . . . . . . . . . . . . Alert | -11 -10 -9 -9 -9 -8 -8 -7 -6 -5 -5 -5 -5 -5 -5 -4 -4 -4 -4 -4 -4 -4 -3 -3 -2 -1 -1 ------- Run | Scr Mat Mat Min Exi Min Mat Fac Fac Fac Was Fac Upp Upp Zhi Pro Fac Was Fac Upp Upp War Pro Res Res Acc Com Peak Influence 805 | . 209 245 91 . . 20 94 270 186 118 775 . . . . 196 59 495 . . . . 565 500 536 805 Average Influence 185 | . 129 169 91 . . 13 31 170 97 80 515 . . . . 64 45 143 . . . . 115 344 420 615 Maximum Alert Level 3 | . 1 1 . . . . . 1 . . 3 . . . . 1 . 2 . . . . 2 2 2 3 Low Security (%) 66 | . 82 64 100 . 100 100 100 49 100 100 2 . . . . 99 100 73 . . . . 83 3 . . Level 1 18 | . 17 35 . . . . . 50 . . 14 . . . . . . 26 . . . . 15 43 29 28 Level 2 13 | . . . . . . . . . . . 80 . . . . . . . . . . . . 52 70 17 Level 3 2 | . . . . . . . . . . . 2 . . . . . . . . . . . . . . 54 Level 4 . | . . . . . . . . . . . . . . . . . . . . . . . . . . . Level 5 . | . . . . . . . . . . . . . . . . . . . . . . . . . . . High Security . | . . . . . . . . . . . . . . . . . . . . . . . . . . . Max Security . | . . . . . . . . . . . . . . . . . . . . . . . . . . . Squads Dispatched 45 | . 1 . . . . . 3 5 4 . 6 . . . . 2 . 8 . . . . 8 2 5 1 Investigation 19 | . . . . . . . 2 2 2 . 1 . . . . 1 . 4 . . . . 5 1 1 . Extermination 8 | . . . . . . . 1 1 1 . 1 . . . . 1 . 2 . . . . 1 . . . Reinforcement 14 | . 1 . . . . . . 2 1 . 2 . . . . . . 2 . . . . 2 1 2 1 Assault 2 | . . . . . . . . . . . . . . . . . . . . . . . . . 2 . Garrison 2 | . . . . . . . . . . . 2 . . . . . . . . . . . . . . . Intercept . | . . . . . . . . . . . . . . . . . . . . . . . . . . . Construction Impeded . | . . . . . . . . . . . . . . . . . . . . . . . . . . . Haulers Reinforced 3 | . . . . . . . . . . . 2 . . . . . . . . . . . . . 1 . Stealth | -11 -10 -9 -9 -9 -8 -8 -7 -6 -5 -5 -5 -5 -5 -5 -4 -4 -4 -4 -4 -4 -4 -3 -3 -2 -1 -1 --------- Run | Scr Mat Mat Min Exi Min Mat Fac Fac Fac Was Fac Upp Upp Zhi Pro Fac Was Fac Upp Upp War Pro Res Res Acc Com Distress Signals 23 | . 1 . . . . . . 2 2 . 3 . . . . 1 . 2 . . . . 6 3 1 2 Communications Jammed . | . . . . . . . . . . . . . . . . . . . . . . . . . . . Distress Signals . | . . . . . . . . . . . . . . . . . . . . . . . . . . . Times Spotted 278 | . 15 6 . . . 7 9 31 18 7 20 1 8 . 12 36 6 20 . 3 9 7 33 11 11 8 Peak Tracking Total 12 | . 4 3 . . . 6 4 7 11 6 4 1 3 . 12 9 6 7 . 3 8 5 11 5 4 5 Tactical Retreats 49 | . 1 . . . . 2 . 9 2 1 2 . 3 . 4 9 . 3 . . 1 1 9 . . 2 Traps | -11 -10 -9 -9 -9 -8 -8 -7 -6 -5 -5 -5 -5 -5 -5 -4 -4 -4 -4 -4 -4 -4 -3 -3 -2 -1 -1 ------- Run | Scr Mat Mat Min Exi Min Mat Fac Fac Fac Was Fac Upp Upp Zhi Pro Fac Was Fac Upp Upp War Pro Res Res Acc Com Traps Triggered 15 | . 1 . . . . . 4 1 4 . . . . . . 1 . 2 . . . . . . . 2 Indirectly . | . . . . . . . . . . . . . . . . . . . . . . . . . . . Trap Hack Attempts . | . . . . . . . . . . . . . . . . . . . . . . . . . . . Triggered . | . . . . . . . . . . . . . . . . . . . . . . . . . . . Disarmed . | . . . . . . . . . . . . . . . . . . . . . . . . . . . Reprogrammed 14 | . . . . . . . . . . . . . . . . 6 . . . . . . . . . 8 Reused . | . . . . . . . . . . . . . . . . . . . . . . . . . . . Traps Extracted . | . . . . . . . . . . . . . . . . . . . . . . . . . . . Installed . | . . . . . . . . . . . . . . . . . . . . . . . . . . . Triggered 4 | . . . . . . . . . . . . . 1 . . . . . . . 1 2 . . . . Machines | -11 -10 -9 -9 -9 -8 -8 -7 -6 -5 -5 -5 -5 -5 -5 -4 -4 -4 -4 -4 -4 -4 -3 -3 -2 -1 -1 ---------- Run | Scr Mat Mat Min Exi Min Mat Fac Fac Fac Was Fac Upp Upp Zhi Pro Fac Was Fac Upp Upp War Pro Res Res Acc Com Machines Disabled 14 | . . . . . . . . 6 . . 1 . . . . . . 1 1 . . . . 1 1 3 Max in Single Turn 2 | . . . . . . . . . . . . . . . . . . 1 1 . . . . 1 1 2 Garrison Access 4 | . . . . . . . . . . . 2 . . . . . . 1 . . . . . 1 . . Phase Generator 1 | . . . . . . . . . . . . . . . . . . . . . . . . . . 1 Machines Sabotaged 1 | . . . . . . . . . . . . . . . . . . . . . . . 1 . . . Garrisons Compromised . | . . . . . . . . . . . . . . . . . . . . . . . . . . . Overloaded Fab Kills . | . . . . . . . . . . . . . . . . . . . . . . . . . . . Fab Network Shutdowns 2 | . . . . . . . . . . . . . . . . . . 1 . . . . 1 . . . Hacking | -11 -10 -9 -9 -9 -8 -8 -7 -6 -5 -5 -5 -5 -5 -5 -4 -4 -4 -4 -4 -4 -4 -3 -3 -2 -1 -1 --------- Run | Scr Mat Mat Min Exi Min Mat Fac Fac Fac Was Fac Upp Upp Zhi Pro Fac Was Fac Upp Upp War Pro Res Res Acc Com Machines Accessed 106 | . . 3 . 4 . 1 4 6 4 . 14 . . 6 . 9 . 11 2 . 11 . 11 3 10 7 Terminals 62 | . . 3 . . . 1 3 4 4 . 8 . . . . 6 . 6 . . . . 9 1 10 7 Fabricators 9 | . . . . . . . 1 . . . 2 . . . . 2 . 1 . . . . 2 1 . . Repair Stations 2 | . . . . . . . . . . . 1 . . . . . . 1 . . . . . . . . Recycling Units . | . . . . . . . . . . . . . . . . . . . . . . . . . . . Scanalyzers 4 | . . . . . . . . . . . 1 . . . . 1 . 2 . . . . . . . . Garrison Access 6 | . . . . . . . . 2 . . 2 . . . . . . 1 . . . . . 1 . . Total Hacks 358 | . . 10 . 14 . 4 13 15 13 . 51 . . 16 . 32 . 52 2 . 32 . 34 16 30 24 Successful 256 | . . 7 . 14 . 2 3 6 5 . 37 . . 16 . 22 . 41 2 . 32 . 18 14 18 19 Failed 101 | . . 3 . . . 2 10 9 8 . 13 . . . . 10 . 11 . . . . 16 2 12 5 Catastrophic 17 | . . . . . . 1 1 1 6 . . . . . . 3 . 1 . . . . 3 . 1 . Database Lockouts 1 | . . . . . . . . . . . 1 . . . . . . . . . . . . . . . Manual 157 | . . 7 . 1 . 3 7 7 9 . 25 . . . . 19 . 22 . . 1 . 11 13 16 16 Terminals 232 | . . 10 . . . 4 12 11 13 . 34 . . . . 23 . 34 . . . . 28 9 30 24 Fabricators 32 | . . . . . . . 1 . . . 8 . . . . 6 . 7 . . . . 6 4 . . Repair Stations 4 | . . . . . . . . . . . 2 . . . . . . 2 . . . . . . . . Recycling Units . | . . . . . . . . . . . . . . . . . . . . . . . . . . . Scanalyzers 14 | . . . . . . . . . . . 3 . . . . 3 . 8 . . . . . . . . Garrison Access 12 | . . . . . . . . 4 . . 4 . . . . . . 1 . . . . . 3 . . Terminal Hacks 181 | . . 4 . 14 . 2 2 3 5 . 17 . . 16 . 13 . 19 2 . 32 . 12 7 17 16 Record 47 | . . . . 13 . . . . . . . . . 4 . . . 1 1 . 16 . 5 . 6 1 Part Schematic 13 | . . 1 . . . 1 . . 1 . 3 . . 4 . 1 . 1 . . . . 1 . . . Robot Analysis 14 | . . . . . . . . . . . 2 . . 4 . . . 3 . . . . . . 3 2 Prototype ID Bank 23 | . . . . . . 1 . . . . 2 . . 4 . . . 2 . . 14 . . . . . Open Door 6 | . . . . . . . . . . . . . . . . . . . 1 . 2 . . . 3 . Level Access Points 6 | . . . . . . . . . . . . . . . . 1 . 1 . . . . 1 1 1 1 Branch Access Points 5 | . . . . . . . . 1 1 . 1 . . . . 1 . 1 . . . . . . . . Emergency Access Points 2 | . . . . . . . . . . . . . . . . . . . . . . . . . . 2 Machine Index 1 | . . . . . . . . . . . . . . . . . . . . . . . . . . 1 Terminal Index 10 | . . 1 . . . . 1 1 1 . 1 . . . . 1 . 1 . . . . 1 . 1 1 Fabricator Index 5 | . . . . . . . . . . . 1 . . . . . . 1 . . . . 1 1 1 . Garrison Index 3 | . . . . . . . . . . . 1 . . . . 1 . . . . . . . 1 . . Alert Level 2 | . . . . . . . . . . . . . . . . . . 1 . . . . . . . 1 Unreport Threat 1 | . . . . . . . . . . . 1 . . . . . . . . . . . . . . . Locate Traps 3 | . . . . . . . . . . . 2 . . . . . . . . . . . 1 . . . Reprogram Traps 6 | . . . . . . . . . . . . . . . . 2 . . . . . . . . . 4 Extermination Status 2 | . . . . . . . . . . . 1 . . . . 1 . . . . . . . . . . Reinforcement Status 1 | . . . . . . . . . . . 1 . . . . . . . . . . . . . . . Recall Investigation 4 | . . . . . . . . . . . . . . . . 2 . 1 . . . . . 1 . . Recall Extermination 5 | . . . . . . . . . 1 . . . . . . 1 . 2 . . . . 1 . . . Recall Reinforcements 8 | . . . . . . . . . . . 1 . . . . 1 . 3 . . . . 1 . 1 1 Recall Assault 1 | . . . . . . . . . . . . . . . . . . . . . . . . 1 . . Hauler Manifests 2 | . . 1 . . . . . . . . . . . . . . . 1 . . . . . . . . Registered Components 1 | . . . . . . . . . . . . . . . . . . . . . . . . 1 . . Registered Prototypes 1 | . . . . . . . . . . . . . . . . . . . . . . . . 1 . . Zone Layout 7 | . . 1 . . . . 1 1 1 . . . . . . 1 . . . . . . . . 1 1 EX-Prototype ID Bank 1 | . . . . 1 . . . . . . . . . . . . . . . . . . . . . . Disengage Seal 1 | . . . . . . . . . . . . . . . . . . . . . . . . . . 1 Fabricator Hacks 24 | . . . . . . . 1 . . . 6 . . . . 4 . 6 . . . . 5 2 . . Load Schematic 10 | . . . . . . . . . . . 2 . . . . 2 . 3 . . . . 2 1 . . Build 14 | . . . . . . . 1 . . . 4 . . . . 2 . 3 . . . . 3 1 . . Repair Station Hacks 4 | . . . . . . . . . . . 2 . . . . . . 2 . . . . . . . . Scan Component 2 | . . . . . . . . . . . 1 . . . . . . 1 . . . . . . . . Repair 2 | . . . . . . . . . . . 1 . . . . . . 1 . . . . . . . . Recycling Unit Hacks . | . . . . . . . . . . . . . . . . . . . . . . . . . . . Scanalyzer 13 | . . . . . . . . . . . 2 . . . . 3 . 8 . . . . . . . . Insert Component 7 | . . . . . . . . . . . 1 . . . . 2 . 4 . . . . . . . . Analyze 6 | . . . . . . . . . . . 1 . . . . 1 . 4 . . . . . . . . Garrison Access Hacks 4 | . . . . . . . . 1 . . 2 . . . . . . 1 . . . . . . . . Unlock Access 1 | . . . . . . . . 1 . . . . . . . . . . . . . . . . . . Seal Access 3 | . . . . . . . . . . . 2 . . . . . . 1 . . . . . . . . Unauthorized Hacks 67 | . . 7 . . . 1 . 6 1 . 16 . . . . 5 . 10 . . . . 3 10 2 6 Terminals 21 | . . 3 . . . . . 2 . . 5 . . . . 1 . 4 . . . . 1 1 1 3 Track 2 | . . 2 . . . . . . . . . . . . . . . . . . . . . . . . Assimilate 5 | . . . . . . . . . . . 1 . . . . 1 . 2 . . . . . . 1 . Botnet 12 | . . 1 . . . . . 2 . . 4 . . . . . . 1 . . . . . 1 . 3 Detonate 1 | . . . . . . . . . . . . . . . . . . 1 . . . . . . . . Sabotage 1 | . . . . . . . . . . . . . . . . . . . . . . . 1 . . . Fabricators 4 | . . . . . . . . . . . 1 . . . . 1 . 1 . . . . . 1 . . Prioritize 2 | . . . . . . . . . . . . . . . . 1 . . . . . . . 1 . . Siphon 2 | . . . . . . . . . . . 1 . . . . . . 1 . . . . . . . . Repair Stations . | . . . . . . . . . . . . . . . . . . . . . . . . . . . Recycling Units . | . . . . . . . . . . . . . . . . . . . . . . . . . . . Scanalyzers . | . . . . . . . . . . . . . . . . . . . . . . . . . . . Garrison Access 5 | . . . . . . . . . . . 2 . . . . . . . . . . . . 3 . . Broadcast 1 | . . . . . . . . . . . . . . . . . . . . . . . . 1 . . Reprogram 2 | . . . . . . . . . . . 1 . . . . . . . . . . . . 1 . . Watchers 1 | . . . . . . . . . . . 1 . . . . . . . . . . . . . . . Eject 1 | . . . . . . . . . . . . . . . . . . . . . . . . 1 . . Data Cores Recovered 1 | . . . . . . . . . . . . . . . . . . 1 . . . . . . . . Used 1 | . . . . . . . . . . . . . . . . . . 1 . . . . . . . . Hacking Detections 69 | . . 3 . . . 1 3 4 4 . 12 . . . . 7 . 9 . . . . 9 3 7 7 Full Trace Events 14 | . . . . . . . 2 2 2 . . . . . . 1 . 3 . . . . 4 . . . Feedback Events 2 | . . . . . . . . . . . . . . . . . . 1 . . . . 1 . . . Hackware Fried 2 | . . . . . . . . . . . . . . . . . . 1 . . . . 1 . . . Feedback Blocked . | . . . . . . . . . . . . . . . . . . . . . . . . . . . Robot Schematics Acquired . | . . . . . . . . . . . . . . . . . . . . . . . . . . . Robots Built . | . . . . . . . . . . . . . . . . . . . . . . . . . . . Matter . | . . . . . . . . . . . . . . . . . . . . . . . . . . . Time . | . . . . . . . . . . . . . . . . . . . . . . . . . . . Total Robot Build Rating . | . . . . . . . . . . . . . . . . . . . . . . . . . . . Part Schematics Acquired 18 | . . 1 . . . 1 . . 1 . 4 . . 4 . 2 . 4 . . . . 1 . . . Parts Built 15 | . . . . . . . . . . . 4 . . . . 3 . 4 . . . . 3 1 . . Matter 3071 | . . . . . . . 234 . . . 510 . . . . 530 . 657 . . . . 855 285 . . Time 826 | . . . . . . . 117 . . . 144 . . . . 137 . 202 . . . . 150 76 . . Total Part Build Rating 69 | . . . . . . . . . . . 12 . . . . 18 . 19 . . . . 15 5 . . Parts Repaired 2 | . . . . . . . . . . . 1 . . . . . . 1 . . . . . . . . Time 111 | . . . . . . . . . . . 80 . . . . . . 31 . . . . . . . . Parts Recycled . | . . . . . . . . . . . . . . . . . . . . . . . . . . . Recycled Matter . | . . . . . . . . . . . . . . . . . . . . . . . . . . . Retrieved Matter . | . . . . . . . . . . . . . . . . . . . . . . . . . . . Retrieved Components . | . . . . . . . . . . . . . . . . . . . . . . . . . . . Parts Scanalyzed 5 | . . . . . . . . . . . 1 . . . . 1 . 3 . . . . . . . . Part Schematics Acquired 5 | . . . . . . . . . . . 1 . . . . 1 . 3 . . . . . . . . Parts Damaged . | . . . . . . . . . . . . . . . . . . . . . . . . . . . Bothacking | -11 -10 -9 -9 -9 -8 -8 -7 -6 -5 -5 -5 -5 -5 -5 -4 -4 -4 -4 -4 -4 -4 -3 -3 -2 -1 -1 ------------ Run | Scr Mat Mat Min Exi Min Mat Fac Fac Fac Was Fac Upp Upp Zhi Pro Fac Was Fac Upp Upp War Pro Res Res Acc Com Used RIF Installer . | . . . . . . . . . . . . . . . . . . . . . . . . . . . Robots Hacked . | . . . . . . . . . . . . . . . . . . . . . . . . . . . Non-combat . | . . . . . . . . . . . . . . . . . . . . . . . . . . . Combat . | . . . . . . . . . . . . . . . . . . . . . . . . . . . Robot Hacks Applied . | . . . . . . . . . . . . . . . . . . . . . . . . . . . Relay Couplers Released 4 | . . . . . . . . . . . . . . . . . . . . . . . . 4 . . Ejected 4 | . . . . . . . . . . . . . . . . . . . . . . . . 4 . . Robots Rewired 2 | . . . . . . . . 1 . . . . . . . 1 . . . . . . . . . . Allies Hacked 2 | . . . . . . . . . . . 1 . . . . . . . . . . . . . . 1 Hacks Repelled . | . . . . . . . . . . . . . . . . . . . . . . . . . . . Allies | -11 -10 -9 -9 -9 -8 -8 -7 -6 -5 -5 -5 -5 -5 -5 -4 -4 -4 -4 -4 -4 -4 -3 -3 -2 -1 -1 -------- Run | Scr Mat Mat Min Exi Min Mat Fac Fac Fac Was Fac Upp Upp Zhi Pro Fac Was Fac Upp Upp War Pro Res Res Acc Com Total Allies 48 | . . . . . . . . 1 3 18 2 . . . . 2 . 1 . . . . . . 1 20 Largest Group 18 | . . . . . . . . 1 3 18 17 . . . . 1 . 1 . . . . . . 1 15 Highest-Rated Group 752 | . . . . . . . . 29 93 650 625 . . . . 60 . 10 . . . . . . 26 752 Highest-Rated Ally 79 | . . . . . . . . 29 31 50 50 . . . . 60 . 10 . . . . . . 26 79 Total Orders 16 | . . . . . . . . . 1 . 5 . . . . . . . . 2 1 . 7 . . . GOTO 6 | . . . . . . . . . . . 2 . . . . . . . . . . . 4 . . . FOLLOW 2 | . . . . . . . . . . . 1 . . . . . . . . 1 . . . . . . EXPLORE 7 | . . . . . . . . . 1 . 2 . . . . . . . . 1 1 . 2 . . . RETURN 1 | . . . . . . . . . . . . . . . . . . . . . . . 1 . . . Ally Attacks 394 | . . . . . . . . 32 12 104 133 . . . . . . . . . . . . . . 113 Total Damage 11969 | . . . . . . . . 2061 83 4519 3200 . . . . . . . . . . . . . . 2106 Kills 61 | . . . . . . . . 12 1 7 26 . . . . . . . . . . . . . . 15 Allies Corrupted 3 | . . . . . . . . . . . 1 . . . . . . . . . 2 . . . . . Allies Melted . | . . . . . . . . . . . . . . . . . . . . . . . . . . . Turrets Deployed 3 | . . . . . . . . 3 . . . . . . . . . . . . . . . . . . Intel | -11 -10 -9 -9 -9 -8 -8 -7 -6 -5 -5 -5 -5 -5 -5 -4 -4 -4 -4 -4 -4 -4 -3 -3 -2 -1 -1 ------- Run | Scr Mat Mat Min Exi Min Mat Fac Fac Fac Was Fac Upp Upp Zhi Pro Fac Was Fac Upp Upp War Pro Res Res Acc Com Robot Analysis Total 14 | . . . . . . . . . . . 2 . . 4 . . . 3 . . . . . . 3 2 Derelict Logs Recovered 6 | . . . . . . . . . . . . 1 1 . 1 . . . 2 1 . . . . . . Drone Launches 19 | . . . . . . . . 6 2 . 2 . . . . . . . . 3 . . 6 . . . Drone Recoveries . | . . . . . . . . . . . . . . . . . . . . . . . . . . . Decoded 0b10 Intel 24 | . . . . . . . . . . . . . . . . 14 1 9 . . . . . . . . Traps 2 | . . . . . . . . . . . . . . . . 2 . . . . . . . . . . Emergency Access 3 | . . . . . . . . . . . . . . . . 2 . 1 . . . . . . . . Items 15 | . . . . . . . . . . . . . . . . 8 1 6 . . . . . . . . Machines 1 | . . . . . . . . . . . . . . . . . . 1 . . . . . . . . Patrols 2 | . . . . . . . . . . . . . . . . 1 . 1 . . . . . . . . Guards 1 | . . . . . . . . . . . . . . . . 1 . . . . . . . . . . Exploration | -11 -10 -9 -9 -9 -8 -8 -7 -6 -5 -5 -5 -5 -5 -5 -4 -4 -4 -4 -4 -4 -4 -3 -3 -2 -1 -1 ------------- Run | Scr Mat Mat Min Exi Min Mat Fac Fac Fac Was Fac Upp Upp Zhi Pro Fac Was Fac Upp Upp War Pro Res Res Acc Com Turns Passed 8173 | . 339 151 31 228 56 190 615 974 553 321 700 96 217 87 118 644 26 1083 71 96 299 134 473 154 296 221 Spaces Moved 17951 | 1 183 253 84 589 151 246 1382 1265 897 468 1140 293 648 240 381 1545 80 2744 188 269 845 448 1318 592 988 713 Core 2338 | . 14 58 . . . . . 1163 897 206 . . . . . . . . . . . . . . . . Treads 1 | . . . . . . . . 1 . . . . . . . . . . . . . . . . . . Legs 170 | 1 169 . . . . . . . . . . . . . . . . . . . . . . . . . Wheels . | . . . . . . . . . . . . . . . . . . . . . . . . . . . Hover 34 | . . . . . . . . 34 . . . . . . . . . . . . . . . . . . Flight 15408 | . . 195 84 589 151 246 1382 67 . 262 1140 293 648 240 381 1545 80 2744 188 269 845 448 1318 592 988 713 Fastest Speed 20 | 120 50 37 37 37 37 37 37 37 50 34 29 32 32 32 28 28 31 29 28 32 27 27 20 20 20 20 Average Speed 33 | 120 114 40 37 37 37 37 37 49 50 41 31 32 32 32 30 32 31 30 31 32 30 27 24 20 20 20 Slowest Speed 160 | 120 120 50 37 37 37 37 37 160 50 50 34 32 32 32 34 114 31 32 32 32 32 27 27 20 20 20 Overloaded Moves 226 | . . . . . . . . . . . . . . . 219 . . . 7 . . . . . . . Propulsion Burnouts 1 | . . . . . . . . . . . . . . . 1 . . . . . . . . . . . Robots Hopped 83 | . . 2 . . . 4 3 4 . . 16 1 . . 6 15 . 12 . 1 2 . 5 . 3 9 Cave-ins Triggered . | . . . . . . . . . . . . . . . . . . . . . . . . . . . Exploration Rate (%) 44 | 2 33 17 18 94 52 19 27 26 29 97 32 44 71 63 66 30 79 37 36 48 96 65 50 16 25 26 Regions Visited 26 Branch Regions 12 Pre-discovered Areas 3 | . . . . 1 . . . . . . . . . 1 . . . . 1 . . . . . . . Known Exits Taken 11 | . . . . . . . . . . . 1 1 1 1 1 . . 1 1 1 . 1 1 1 . . Unknown Exits Taken 11 | 1 1 1 1 1 1 1 1 1 . . . . . . . . . . . . 1 . . . 1 . Scrap Searched 11 | . . . . . . . . . . . . . 3 . 2 . . . 1 3 . 2 . . . . Spaces Dug 119 | . . . . . . . 1 4 13 . 10 . . . . 14 . 22 2 . 3 3 21 5 10 11 Terrain Destroyed 179 | . . . . . . . 1 4 13 . 10 . . . . 14 . 22 2 . 3 3 21 5 10 71 Melee 119 | . . . . . . . 1 4 13 . 10 . . . . 14 . 22 2 . 3 3 21 5 10 11 Projectile . | . . . . . . . . . . . . . . . . . . . . . . . . . . . AOE 60 | . . . . . . . . . . . . . . . . . . . . . . . . . . 60 Actions | -11 -10 -9 -9 -9 -8 -8 -7 -6 -5 -5 -5 -5 -5 -5 -4 -4 -4 -4 -4 -4 -4 -3 -3 -2 -1 -1 --------- Run | Scr Mat Mat Min Exi Min Mat Fac Fac Fac Was Fac Upp Upp Zhi Pro Fac Was Fac Upp Upp War Pro Res Res Acc Com Total 19597 | . 236 284 83 600 150 339 1459 1588 969 594 1420 293 656 249 376 1648 80 2929 193 277 884 455 1426 616 1052 741 Wait 1088 | . 5 11 . . . 93 7 286 3 119 230 2 8 . . 71 1 121 . 5 18 5 58 9 34 2 Move 17773 | . 182 248 83 588 150 238 1375 1256 897 467 1109 290 647 239 372 1517 79 2721 187 266 841 447 1307 591 982 694 Hop 71 | . . 2 . . . 3 3 4 . . 14 1 . . 2 13 . 11 . 1 1 . 5 . 2 9 Pick Up 65 | . 1 1 . 5 . 2 1 6 3 1 8 . . 3 1 8 . 8 . . 6 . 7 2 2 . Fast Attach 62 | . . 4 . . . 1 4 9 3 3 9 . 1 2 . 1 . 8 2 2 1 . 6 . 5 1 Attach 50 | . 1 1 . 1 . . 1 4 2 1 6 . . 1 1 9 . 4 . . 6 . 8 2 2 . Detach 10 | . . . . . . . . . 1 . 2 . . . . 1 . 2 . . . . 1 2 1 . Swap 19 | . 3 . . 1 . 1 . . . . 3 . . 1 . 2 . 4 . . 1 . 1 2 . . Drop 72 | . 5 2 . 5 . 1 . 5 1 3 6 . . 3 . 6 . 15 1 2 7 . 4 1 4 1 Fire 58 | . 39 15 . . . . . 2 . . 1 . . . . . . . . . . . . . . 1 Melee 216 | . . . . . . . 14 10 25 . 31 . . . . 18 . 29 3 . 3 3 27 7 20 26 Ram 5 | . . . . . . . . 1 3 . . . . . . . . 1 . . . . . . . . Kick . | . . . . . . . . . . . . . . . . . . . . . . . . . . . Crush . | . . . . . . . . . . . . . . . . . . . . . . . . . . . Escape Stasis 96 | . . . . . . . 54 . 30 . . . . . . . . 5 . . . . . . . 7 Rewire 4 | . . . . . . . . 2 . . . . . . . 2 . . . . . . . . . . Trap . | . . . . . . . . . . . . . . . . . . . . . . . . . . . Miscellaneous 8 | . . . . . . . . 3 1 . 1 . . . . . . . . 1 . . 2 . . . Route ------- -11/Scrapyard -10/Materials (discovered 2 exits: *Mat x2) -9/Materials -9/Mines -9/Exiles (discovered 2 exits: [*Min x2]) -8/Mines -8/Materials -7/Factory -6/Factory (discovered 4 exits: *Fac / Low x2 / Gar) -5/Factory (discovered 5 exits: *Fac / *Upp x2 / Ext x2) -5/Waste -5/Factory (discovered 6 exits: *Fac x2 / *Upp x2 / Ext x2) -5/Upper Caves -5/Upper Caves (discovered 2 exits: *Fac / *Zhi) -5/Zhirov -4/Proximity Caves -4/Factory (discovered 6 exits: *Res x4 / Upp x2) -4/Waste -4/Factory (discovered 6 exits: *Res x4 / *Upp x2) -4/Upper Caves -4/Upper Caves (discovered 2 exits: Res / *War) -4/Warlord -3/Proximity Caves -3/Research (discovered 5 exits: *Res x3 / [*Arm] / [*Qua]) -2/Research (discovered 3 exits: *Acc x3) -1/Access (discovered 2 exits: Sur / *Com) -1/Command (discovered 2 exits: *Sur x2) To Epsilon Eridani History --------- Turn | Location | Event 1 | -11/Scrapyard | Discovered new exit (range 0) 1 | -11/Scrapyard | Entered Materials 184 | -10/Materials | Discovered new exit (range 13) 301 | -10/Materials | Discovered new exit (range 16) 307 | -10/Materials | Build established: Mutant 340 | -10/Materials | Entered another Materials area 340 | -9/Materials | Evolved 2 slots: Utility x2 479 | -9/Materials | Discovered new exit (range 10) 491 | -9/Materials | Entered Mines 521 | -9/Mines | Deemed a non-threat by the Exiles lab entrance 521 | -9/Mines | Discovered new exit (range 5) 522 | -9/Mines | Entered Exiles 534 | -9/Exiles | Discovered new exit (range 15) 549 | -9/Exiles | Met 8R-AWN 555 | -9/Exiles | Met EX-HEX 568 | -9/Exiles | Met EX-BIN 602 | -9/Exiles | Aligned with FarCom system 602 | -9/Exiles | Given EX-Vault access code 611 | -9/Exiles | Opened EX-Vault 614 | -9/Exiles | Found Deploy-a-Sentry 616 | -9/Exiles | Found Deploy-a-Sentry 617 | -9/Exiles | Found Deploy-a-Sentry 626 | -9/Exiles | Warned to stay clear of 0b10 Research branches 656 | -9/Exiles | Visited The Gauntlet 698 | -9/Exiles | Met EX-DEC 708 | -9/Exiles | Learned location of Zion (-6) 733 | -9/Exiles | Discovered new exit (range 14) 750 | -9/Exiles | Left Exiles lab with Deploy-a-Sentry 750 | -9/Exiles | Entered Mines 797 | -8/Mines | Discovered new exit (range 12) 806 | -8/Mines | Entered Materials 806 | -8/Materials | Evolved 2 slots: Utility x2 990 | -8/Materials | Discovered new exit (range 16) 996 | -8/Materials | Entered Factory 996 | -7/Factory | Evolved 2 slots: Propulsion x2 1176 | -7/Factory | Discovered new exit (range 15) 1310 | -7/Factory | Build established: Scout 1611 | -7/Factory | Entered another Factory area 1611 | -6/Factory | Evolved 2 slots: Utility x2 1739 | -6/Factory | DAS Turret deployed 1963 | -6/Factory | Identified exit to Garrison 2040 | -6/Factory | Lost 6 parts (4n2u) 2055 | -6/Factory | Core integrity fell below 50% 2058 | -6/Factory | DAS Turret deployed 2116 | -6/Factory | Build established: Mutant 2130 | -6/Factory | DAS Turret deployed 2539 | -6/Factory | Discovered new exit (range 19) 2557 | -6/Factory | Identified exit to Lower Caves 2585 | -6/Factory | Entered another Factory area 2585 | -5/Factory | Evolved 2 slots: Utility x2 2633 | -5/Factory | Discovered new exit (range 15) 2914 | -5/Factory | Identified exit to Upper Caves 2914 | -5/Factory | Identified exit to Extension 3044 | -5/Factory | Allied Derelicts emerged from ambush trap array 3138 | -5/Factory | Manually triggered Chute Trap 3138 | -5/Factory | Sucked down chute 3138 | -5/Factory | Entered Waste 3148 | -5/Waste | Spotted C-40 Crusher 3160 | -5/Waste | 1 allies followed down the chute 3161 | -5/Waste | Spotted C-40 Crusher 3181 | -5/Waste | Spotted C-40 Crusher 3181 | -5/Waste | Spotted C-40 Crusher 3185 | -5/Waste | Spotted C-40 Crusher 3189 | -5/Waste | Spotted C-40 Crusher 3197 | -5/Waste | Discovered new exit (range 10) 3296 | -5/Waste | Warlord forces began an assault 3304 | -5/Waste | Allies destroyed C-40 Crusher 3304 | -5/Waste | Allies destroyed C-40 Crusher 3307 | -5/Waste | Allies destroyed C-40 Crusher 3309 | -5/Waste | Allies destroyed C-40 Crusher 3313 | -5/Waste | Allies destroyed C-40 Crusher 3318 | -5/Waste | Allies destroyed C-40 Crusher 3374 | -5/Waste | Found Enh. Force Lance 3401 | -5/Waste | Build established: Hacker-Mutant 3459 | -5/Waste | Entered Factory 3459 | -5/Factory | Accompanied by 17 allies 3503 | -5/Factory | Fabricated Hacking Suite (x1) 3578 | -5/Factory | Fabricated Hacking Suite (x1) 3615 | -5/Factory | Fabricated Hacking Suite (x1) 3626 | -5/Factory | Discovered new exit (range 17) 3751 | -5/Factory | Repaired Cld. Cesium-ion Thruster 3803 | -5/Factory | Fabricated Hacking Suite (x1) 3846 | -5/Factory | Garrison activated, responded to threat 3860 | -5/Factory | Spotted B-75 Beast 3866 | -5/Factory | Allies destroyed B-75 Beast 3947 | -5/Factory | Discovered new exit (range 14) 4113 | -5/Factory | Build established: Wizard-Sprinter 4145 | -5/Factory | Central database locked down 4159 | -5/Factory | Entered Upper Caves 4183 | -5/Upper Caves | Learned 4 Factory zone layouts 4216 | -5/Upper Caves | Attracted the attention of an 0b10 checkpoint 4253 | -5/Upper Caves | Discovered new exit (range 6) 4254 | -5/Upper Caves | Identified exit to Upper Caves 4255 | -5/Upper Caves | Entered another Upper Caves area 4266 | -5/Upper Caves | Discovered new exit (range 12) 4284 | -5/Upper Caves | Attracted the attention of an 0b10 checkpoint 4314 | -5/Upper Caves | Identified exit to Factory 4466 | -5/Upper Caves | Discovered new exit (range 19) 4472 | -5/Upper Caves | Identified exit to Zhirov 4472 | -5/Upper Caves | Entered Zhirov 4472 | -5/Zhirov | Discovered new exit (range 3) 4473 | -5/Zhirov | Identified exit to Proximity Caves 4478 | -5/Zhirov | Met Zhirov 4485 | -5/Zhirov | Learned location of Command (-1) 4491 | -5/Zhirov | Zhirov requested help retrieving the SGEMP Prototype 4498 | -5/Zhirov | Found Alien Artifact 4499 | -5/Zhirov | Identified Integrated Reactor 4499 | -5/Zhirov | Installed Integrated Reactor, increased core energy generation (+2%) 4524 | -5/Zhirov | Found Alien Artifact 4559 | -5/Zhirov | Entered Proximity Caves 4616 | -4/Proximity Caves | Learned Research terminal intel 4670 | -4/Proximity Caves | Discovered exit to Factory (range 13) 4677 | -4/Proximity Caves | Entered Factory 4677 | -4/Factory | Evolved 2 slots: Power x1, Propulsion x1 4678 | -4/Factory | Identified exit to Research 4922 | -4/Factory | Fabricated Field Propulsion Drive? 4930 | -4/Factory | Build established: Wizard-Mutant 4930 | -4/Factory | Identified Transdimensional Reconstructor 4978 | -4/Factory | Identified exit to Upper Caves 5079 | -4/Factory | Spotted B-86 Titan 5113 | -4/Factory | Lost 3 parts (1n1u1w) 5189 | -4/Factory | Fabricated Plasma Sword (x1) 5321 | -4/Factory | Sucked down chute 5321 | -4/Factory | Entered Waste 5322 | -4/Waste | Spotted C-40 Crusher 5336 | -4/Waste | EMP discharged 5336 | -4/Waste | System corruption reached 10% 5336 | -4/Waste | Spotted C-40 Crusher 5336 | -4/Waste | Discovered new exit (range 22) 5337 | -4/Waste | Spotted C-40 Crusher 5338 | -4/Waste | Spotted C-40 Crusher 5339 | -4/Waste | Spotted C-40 Crusher 5342 | -4/Waste | Spotted C-40 Crusher 5347 | -4/Waste | Entered Factory 5422 | -4/Factory | Spotted B-86 Titan 5525 | -4/Factory | Fabricated Fusion Reactor? 5625 | -4/Factory | Fabricated System Backup Module? 5659 | -4/Factory | Build established: Wizard-Sprinter 5892 | -4/Factory | System Shield fried by hacking feedback 6131 | -4/Factory | Repaired Reaction Control System? 6141 | -4/Factory | Local fabrication network quarantined 6215 | -4/Factory | Fabricated Cld. Cesium-ion Thruster (x1) 6430 | -4/Factory | Entered Upper Caves 6464 | -4/Upper Caves | Found Alien Artifact 6464 | -4/Upper Caves | Identified Dimensional Node Initializer 6464 | -4/Upper Caves | Initialized slip node 6490 | -4/Upper Caves | Learned location of Quarantine (-3) 6493 | -4/Upper Caves | Identified exit to Upper Caves 6501 | -4/Upper Caves | Entered another Upper Caves area 6502 | -4/Upper Caves | Identified exit to Warlord 6507 | -4/Upper Caves | Encountered a Warlord checkpoint 6584 | -4/Upper Caves | Attracted the attention of an 0b10 checkpoint 6597 | -4/Upper Caves | Entered Warlord 6597 | -4/Warlord | Accompanied by 2 allies 6608 | -4/Warlord | System corruption cleaned by Quarantine Array 6653 | -4/Warlord | Received a Watcher feed algorithm from an ecstatic Tinkerer 6713 | -4/Warlord | Learned 4 Research zone layouts 6713 | -4/Warlord | Learned 4 Access zone layouts 6713 | -4/Warlord | Learned 4 Command zone layouts 6713 | -4/Warlord | Learned Armory trap positions 6713 | -4/Warlord | Learned Testing trap positions 6713 | -4/Warlord | Learned Research emergency access door positions 6713 | -4/Warlord | Learned Testing stockpile data 6713 | -4/Warlord | Learned Testing security intel 6773 | -4/Warlord | Met Warlord 6782 | -4/Warlord | Found Prototype Reactor 6782 | -4/Warlord | Identified Vortex Chain Reactor 6793 | -4/Warlord | Found Spectral Analyzer 6794 | -4/Warlord | Found Prototype Device 6795 | -4/Warlord | Identified System Purifier 6798 | -4/Warlord | Warlord's base attacked by MAIN.C 6798 | -4/Warlord | Found Prototype Device 6799 | -4/Warlord | Identified Exp. Cloaking Device 6801 | -4/Warlord | Found Prototype Hackware 6802 | -4/Warlord | Identified System Mapper 6858 | -4/Warlord | Opened side exit 6894 | -4/Warlord | Discovered new exit (range 8) 6896 | -4/Warlord | Entered Proximity Caves 6987 | -3/Proximity Caves | Spotted B-86 Titan 6999 | -3/Proximity Caves | Attracted the attention of an 0b10 checkpoint 7030 | -3/Proximity Caves | Entered Research 7030 | -3/Research | Evolved 2 slots: Propulsion x1, Utility x1 7032 | -3/Research | System Mapper fried by hacking feedback 7033 | -3/Research | Loaded intel: 19 terminal locations 7091 | -3/Research | Fabricated Cld. Cesium-ion Thruster (x1) 7177 | -3/Research | Fabricated Cld. Cesium-ion Thruster? 7252 | -3/Research | Identified exit to Research 7257 | -3/Research | Spotted B-86 Titan 7265 | -3/Research | Lost 5 parts (5u) 7400 | -3/Research | Discovered new exit (range 30) 7426 | -3/Research | Local fabrication network quarantined 7463 | -3/Research | Fabricated Cld. Cesium-ion Thruster? 7463 | -3/Research | Discovered new exit (range 55) 7503 | -3/Research | Entered another Research area 7503 | -2/Research | Warlord forces began assault on 0b10 7503 | -2/Research | Evolved 2 slots: Utility x2 7540 | -2/Research | Identified exit to Access 7571 | -2/Research | Spotted H1-5UU(L) 7588 | -2/Research | Borebot progress halted 7601 | -2/Research | Fabricated Cld. Cesium-ion Thruster? 7612 | -2/Research | Borebot progress halted 7613 | -2/Research | Research machine network offline 7657 | -2/Research | Entered Access 7657 | -1/Access | Evolved 2 slots: Propulsion x2 7907 | -1/Access | First assault squad dispatched 7952 | -1/Access | Discovered new exit (range 7) 7952 | -1/Access | Identified exit to Surface 7953 | -1/Access | Entered Command 7975 | -1/Command | Disengaged cave seal 8027 | -1/Command | Phase Generator disabled 8163 | -1/Command | Spotted Executioner 8163 | -1/Command | Spotted Striker 8163 | -1/Command | Spotted Alpha 7 8163 | -1/Command | Spotted B-99 Colossus 8165 | -1/Command | Spotted Executioner 8174 | *** | Escaped! Last Messages --------------- 08164_ Slug penetrates Reinforced Barrier. 08165_ Triggered Stasis Trap. 08165_ A bubble of rippling energy engulfs the area. 08165_ Field strength at 87. 08165_ Access Shell breached. 08167_ Slug penetrates Access Shell. 08167_ Penetrated by Slug. 08167_ Slug penetrates Wall. 08167_ Field strength at 74. 08168_ Field strength at 61. 08169_ Slug penetrates Wall. 08169_ Field strength at 48. 08170_ Field strength at 35. 08171_ Slug penetrates Reinforced Barrier. 08171_ Field strength at 22. 08172_ B-99 Colossus activates siege mode. 08172_ Slug penetrates Reinforced Barrier. 08172_ Field strength at 9. 08173_ Stasis field depleted. [Achievement: Epsilon Run] Map ----- +----------------------------------------------------+ | ?????????????????????????????????????????????????? | | ???????? ???????????????????????????????????????? | | ???????? ??????????????????????????????????????? | | ???????? ??????????????????????????????????????? | | ???????? ??????????????????????????????????????? | | ???????? ??????????????????????????????????????? | | ???????# ??????????????????????????????????????? | | #??????# ??????????????????????????????????????? | | #??????# #??????????????????????????????????????? | | #??????# #??????????????????????????????????????? | | #??????# #??????????????????????????????????????? | | #??????# #??????????????????????????????????????# | | #??????# #?????????????????????????????????????? | | #??????# #??????????????????????????????????????? | | #??????# #??????????????????????????????????????? | | #??????# #??????????????????????????????????????? | | #??????# #??????????????????????????????????????? | | #??????# ########????????Y??????????????????????? | | #??????+ # ! #?######????????????????????????? | | #??????# + #?#;;#;#########????????????????? | | #??????# # #?# #????????????????? | | #??????# # #?# #????????????????? | | ######## # #?# ^ ^ #????????????????? | | # #?# """" #????????????????? | | + ### "????????????????????? | | ########### " @" "????????????????????? | | ## ### " "" "????????????????????? | | ## [#?# "????????????????????? | | ## #?# """"""????????????????????? | | ## #?# E ????????????????????????? | | !![ ## #?#BB ????BB?????????????????? | | !![ #########?#B ???BB?????????????????? | | !![ #?????????#### ?????????????????????? | | #????????????? E???????????????????? | | #????????????? #???????????????????? | | #????????????E E#??????????????????? | | #????????????? ##?????############## | | ##+###+###????????????K K??????# | | # #?????????????? ##?????# | | # #?????????????7 7??????# "" "" | | # #?????????????? ##?????# """" """" | | # #?????????????? #??????# """" """" | | #" #??????????????#++++##??????# "" "" | | #"" #???????????????????????????# | | #"" #???????????????????????????# = | | #"" #???????????????????????????##########+### | | #"" +????? ???????????????????????# """"" # | | #"T #????? ????????????????????# ""T"" # | | #"" = #????? ?????????????????# # | | #"" #????? ???????????????# + | +----------------------------------------------------+ Best States ------------- Heat Dissipation 52 Energy Generation 80 Energy Capacity 1200 Matter Stores 300 Matter Capacity 300 Sight Range 24 Terrain Scan Range 20 Terrain Scan Density 85 Cloak Strength 4 Power Amplification 30 Additional Mass Support 12 Evasion (%) 80 Offensive Hacking 74 Defensive Hacking 26 Item Schematics ----------------- Imp. Sensor Array | -9/Materials | Hacked Adv. Terrain Scanner | -8/Materials | Hacked Hacking Suite | -5/Factory | Hacked Enh. Force Lance | -5/Factory | Scanalyzed Field Propulsion Drive | -5/Factory | Hacked Plasma Sword | -5/Factory | Hacked System Backup Module | -5/Factory | Hacked Assault Drone Bay | -5/Zhirov | Free Exp. Heat Sink | -5/Zhirov | Free Exp. Optical Array | -5/Zhirov | Free Imp. Arc Thrower | -5/Zhirov | Free Fusion Reactor | -4/Factory | Scanalyzed Q-thruster | -4/Factory | Hacked Reaction Control System | -4/Factory | Scanalyzed Cld. Cesium-ion Thruster | -4/Factory | Hacked Adv. Power Amplifier | -4/Factory | Scanalyzed Energy Well | -4/Factory | Scanalyzed Adv. Force Field | -3/Research | Hacked Robot Schematics ------------------ None Fabricated ------------ Hacking Suite | x1 | -5/Factory Hacking Suite | x1 | -5/Factory Hacking Suite | x1 | -5/Factory Hacking Suite | x1 | -5/Factory Field Propulsion Drive | x2 | -4/Factory Plasma Sword | x1 | -4/Factory Fusion Reactor | x1 | -4/Factory System Backup Module | x2 | -4/Factory Cld. Cesium-ion Thruster | x1 | -4/Factory Cld. Cesium-ion Thruster | x1 | -3/Research Cld. Cesium-ion Thruster | x1 | -3/Research Cld. Cesium-ion Thruster | x1 | -3/Research Cld. Cesium-ion Thruster | x1 | -2/Research Alien Tech Used ----------------- Integrated Reactor Dimensional Node Initializer Achievements -------------- Below Can't Catch Me Cya! Deadly Force Denied? Dodgeball, But With Guns Dynamic Key Epsilon Run Knowing Is Half The Battle More Power To You Party Time Production Line Prolific Hacker Release The Drones! Respectable Loadout Rockin' Loadout Safety First Slippery One The Science Guy Wheee! Challenges ------------ None Game ------ Seed ReinforcedFlakDevice Manual? 0 Play Time 05:18:41 Cumulative 114.0 hours Start 2019.11.25 @ 20:52:43 End 2019.11.27 @ 11:55:59 Sessions 25 Manual Loads 0 Difficulty Rogue Special Mode None Game No. 74 Rogue 74 Adventurer 0 Explorer 0 Win Type 0 Total 3 Types 3/0/0/0/0/0/0 Lore% 61 Gallery% 55 Achievement% 34 Wizard Run 0 Options --------- ASCII 1 Keyboard 0 Movement Mouse Keybinds 0 Fullscreen 2 Font 12/Smallcaps Map View 76x56 Tactical HUD 1 Map Filters NONE Filters NONE Steam 0 RUN: 5bcf3460-3781-4c3d-b4f9-6ea6851757f2